[Event "20th Prague Open 2022"]
[Site "Prague"]
[Date "2022.01.08"]
[Round "3.3"]
[White "Mirzoev, Azer"]
[Black "Unneland, Mathias"]
[Result "1-0"]
[ECO "A16"]
[WhiteElo "2420"]
[BlackElo "2262"]
[Annotator "NA RC"]
[PlyCount "89"]
[EventDate "2022.01.07"]
[EventType "swiss"]
[EventCountry "CZE"]
[SourceTitle "playchess.com"]
[Source "ChessBase"]
[SourceQuality "1"]
[TimeControl "40/5400+30:1800+30"]

1. c4 {[%emt 0:01:14]} Nf6 {[%emt 0:00:42]} 2. Nc3 {[%emt 0:00:05]} e5 {[%emt 0:00:33]} 3. e3 {[%emt 0:00:17]} d5 {[%emt 0:02:42]} 4. cxd5 {[%emt 0:00:09]} Nxd5 {[%emt 0:00:07]} 5. Nf3 {[%emt 0:00:09]} Nc6 {[%emt 0:03:54]} 6. Bb5 {[%emt 0:05:17]} Nxc3 {[%emt 0:11:02]} 7. bxc3 {[%emt 0:00:37]} Bd6 {[%emt 0:04:42]} 8. d4 {[%emt 0:10:45]} e4 {[%emt 0:09:51]} 9. Nd2 {[%emt 0:00:43]} Qg5 {[%emt 0:00:34]} 10. Qa4 {[%emt 0:02:09]} Bd7 {[%emt 0:04:46]} 11. g3 {[%emt 0:02:20]} a6 {[%emt 0:01:44]} 12. Be2 {[%emt 0:01:50]} f5 {[%emt 0:09:55]} 13. Qb3 {[%emt 0:01:57]} Nd8 {[%emt 0:10:36]} 14. Ba3 {[%emt 0:01:41]} Bxa3 {[%emt 0:02:14]} 15. Qxa3 {[%emt 0:00:05]} Qe7 {[%emt 0:00:41]} 16. Qb3 {[%emt 0:02:17]} Be6 {[%emt 0:00:53]} 17. Bc4 {[%emt 0:00:58]} O-O {[%emt 0:02:52]} 18. a4 {[%emt 0:00:17]} Bxc4 {[%emt 0:07:56]} 19. Nxc4 {[%emt 0:01:20]} Qe6 {[%emt 0:00:31]} 20. Nd2 {[%emt 0:00:18]} Qxb3 {[%emt 0:03:40]} 21. Nxb3 {[%emt 0:00:05]} a5 {[%emt 0:01:21]} 22. Ke2 {[%emt 0:00:40]} Rf6 {[%emt 0:03:38]} 23. Rab1 {[%emt 0:02:05]} b6 {[%emt 0:06:03]} 24. h4 {[%emt 0:00:27]} Nb7 {[%emt 0:01:00]} 25. Rhc1 {[%emt 0:02:12]} Rc8 {[%emt 0:01:41]} 26. Rc2 {[%emt 0:08:40]} c5 {[%emt 0:02:11]} 27. Rcb2 {[%emt 0:03:58]} cxd4 {[%emt 0:01:20]} 28. cxd4 {[%emt 0:00:04]} Rc4 {[%emt 0:00:41]} 29. Nd2 {[%emt 0:01:05]} Rxa4 {[%emt 0:00:39]} 30. Rxb6 {[%emt 0:00:40]} Rxb6 {[%emt 0:00:06]} 31. Rxb6 {[%emt 0:00:10]} Rb4 {[%emt 0:00:06]} 32. Ra6 {[%emt 0:00:41]} Kf7 {[%emt 0:01:10]} 33. Kd1 {[%emt 0:00:12]} Ke7 {[%emt 0:02:43]} 34. Kc2 {[%emt 0:00:18]} Kd7 {[%emt 0:00:36]} 35. Kc3 {[%emt 0:01:03]} Ra4 {[%emt 0:02:04]} 36. Nc4 {[%emt 0:05:31]} Ra2 {[%emt 0:01:15]} 37. d5 {[%emt 0:06:59]} Rxf2 {[%emt 0:00:51]} 38. Ne5+ {[%emt 0:00:12]} Ke7 {[%emt 0:01:31]} 39. Ra7 {[%emt 0:03:13]} Kd6 {[%emt 0:00:10]} 40. Nc4+ {[%emt 0:00:29]} Kxd5 {[%emt 0:00:34]} 41. Rxb7 {[%emt 0:30:06]} g6 {[%emt 0:30:10]} 42. Rxh7 {[%emt 0:12:48]} Rg2 {[%emt 0:01:03]} 43. Ra7 {[%emt 0:02:19]} Rxg3 {[%emt 0:00:00]} 44. Rxa5+ {[%emt 0:00:00]} Ke6 {[%emt 0:00:00]} 45. Kd4 {[%emt 0:00:00]} 1-0

[Event "20th Prague Open 2022"]
[Site "Prague"]
[Date "2022.01.08"]
[Round "3.22"]
[White "Bouska, Jiri"]
[Black "Hrbek, Stepan"]
[Result "0-1"]
[ECO "B33"]
[WhiteElo "2071"]
[BlackElo "2179"]
[Annotator "NA RC"]
[PlyCount "78"]
[EventDate "2022.01.07"]
[EventType "swiss"]
[EventCountry "CZE"]
[SourceTitle "playchess.com"]
[Source "ChessBase"]
[SourceQuality "1"]
[TimeControl "40/5400+30:1800+30"]

1. e4 {[%emt 0:00:01]} c5 {[%emt 0:00:06]} 2. Nf3 {[%emt 0:00:09]} Nc6 {[%emt 0:00:05]} 3. d4 {[%emt 0:00:05]} cxd4 {[%emt 0:00:05]} 4. Nxd4 {[%emt 0:00:08]} Nf6 {[%emt 0:00:05]} 5. Nc3 {[%emt 0:00:08]} e5 {[%emt 0:00:06]} 6. Ndb5 {[%emt 0:00:21]} d6 {[%emt 0:00:11]} 7. Bg5 {[%emt 0:00:23]} a6 {[%emt 0:00:06]} 8. Na3 {[%emt 0:00:08]} b5 {[%emt 0:00:06]} 9. Nd5 {[%emt 0:00:07]} Be7 {[%emt 0:00:06]} 10. Bxf6 {[%emt 0:00:53]} Bxf6 {[%emt 0:00:10]} 11. g3 {[%emt 0:01:36]} h5 {[%emt 0:09:57]} 12. Bg2 {[%emt 0:02:57]} Bg4 {[%emt 0:05:05]} 13. Qd3 {[%emt 0:03:34]} h4 {[%emt 0:01:24]} 14. O-O {[%emt 0:03:17]} Ne7 {[%emt 0:06:21]} 15. Nxf6+ {[%emt 0:03:59]} gxf6 {[%emt 0:00:07]} 16. c4 {[%emt 0:01:55]} b4 {[%emt 0:02:05]} 17. Nc2 {[%emt 0:00:32]} Qb6 {[%emt 0:01:57]} 18. Ne3 {[%emt 0:04:14]} Be6 {[%emt 0:00:43]} 19. Rfd1 {[%emt 0:00:43]} Rd8 {[%emt 0:00:28]} 20. Rac1 {[%emt 0:01:16]} hxg3 {[%emt 0:01:20]} 21. hxg3 {[%emt 0:00:22]} Nc6 {[%emt 0:02:59]} 22. Kf1 {[%emt 0:29:43]} Kf8 {[%emt 0:07:52]} 23. f4 {[%emt 0:06:00]} Kg7 {[%emt 0:00:07]} 24. f5 {[%emt 0:00:25]} Bc8 {[%emt 0:00:16]} 25. Qe2 {[%emt 0:04:59]} Rh6 {[%emt 0:01:59]} 26. Kf2 {[%emt 0:05:07]} Nd4 {[%emt 0:00:39]} 27. Qg4+ {[%emt 0:00:36]} Rg6 {[%emt 0:00:08]} 28. Qh4 {[%emt 0:01:57]} Rh6 {[%emt 0:06:07]} 29. Qg4+ {[%emt 0:00:36]} Rg6 {[%emt 0:00:07]} 30. Qh4 {[%emt 0:00:14]} Rh8 {[%emt 0:00:05]} 31. Qxh8+ {[%emt 0:01:11]} Kxh8 {[%emt 0:00:05]} 32. fxg6 {[%emt 0:00:07]} fxg6 {[%emt 0:00:10]} 33. Rh1+ {[%emt 0:03:05]} Kg7 {[%emt 0:00:11]} 34. Rh2 {[%emt 0:01:28]} Be6 {[%emt 0:00:38]} 35. g4 {[%emt 0:07:37]} b3 {[%emt 0:03:51]} 36. axb3 {[%emt 0:05:04]} Qxb3 {[%emt 0:00:13]} 37. Re1 {[%emt 0:00:29]} Qxb2+ {[%emt 0:00:42]} 38. Kg1 {[%emt 0:00:14]} Qd2 {[%emt 0:00:22]} 39. Kf1 {[%emt 0:00:47]} Nf3 {[%emt 0:00:11]} 0-1

[Event "20th Prague Open 2022"]
[Site "Prague"]
[Date "2022.01.12"]
[Round "7.8"]
[White "Cholleti Sahajasri"]
[Black "Czerw, Dawid"]
[Result "0-1"]
[ECO "A57"]
[WhiteElo "2235"]
[BlackElo "2396"]
[Annotator "RC"]
[PlyCount "92"]
[EventDate "2022.01.07"]
[EventType "swiss"]
[EventCountry "CZE"]
[SourceTitle "playchess.com"]
[Source "ChessBase"]
[SourceQuality "1"]
[TimeControl "40/5400+30:1800+30"]

1. d4 {[%emt 0:09:24]} Nf6 {[%emt 0:00:06]} 2. c4 {[%emt 0:00:32]} c5 {[%emt 0:00:04]} 3. d5 {[%emt 0:00:15]} b5 {[%emt 0:00:05]} 4. Bg5 {[%emt 0:00:46]} bxc4 {[%emt 0:00:22]} 5. Nd2 {[%emt 0:04:50]} Qa5 {[%emt 0:17:56]} 6. Bxf6 {[%emt 0:00:32]} gxf6 {[%emt 0:00:45]} 7. Qc2 {[%emt 0:02:52]} d6 {[%emt 0:02:59]} 8. e4 {[%emt 0:09:22]} Nd7 {[%emt 0:00:50]} 9. Bxc4 {[%emt 0:07:25]} Nb6 {[%emt 0:06:01]} 10. Be2 {[%emt 0:01:30]} Bh6 {[%emt 0:01:06]} 11. Ngf3 {[%emt 0:02:13]} Ba6 {[%emt 0:01:17]} 12. Bxa6 {[%emt 0:10:34]} Qxa6 {[%emt 0:01:37]} 13. b3 {[%emt 0:00:56]} Rb8 {[%emt 0:05:21]} 14. Qd1 {[%emt 0:17:53]} f5 {[%emt 0:08:56]} 15. exf5 {[%emt 0:01:51]} Qd3 {[%emt 0:03:02]} 16. Qb1 {[%emt 0:13:09]} Qc3 {[%emt 0:07:05]} 17. Qd1 {[%emt 0:04:19]} Bxd2+ {[%emt 0:02:39]} 18. Nxd2 {[%emt 0:00:03]} Qe5+ {[%emt 0:00:08]} 19. Kf1 {[%emt 0:00:04]} Qxf5 {[%emt 0:02:25]} 20. Qe2 {[%emt 0:02:29]} Nxd5 {[%emt 0:06:05]} 21. Nc4 {[%emt 0:00:18]} O-O {[%emt 0:01:18]} 22. Re1 {[%emt 0:02:55]} Rbe8 {[%emt 0:08:52]} 23. h4 {[%emt 0:00:21]} Nf4 {[%emt 0:02:00]} 24. Qf3 {[%emt 0:02:34]} Qd3+ {[%emt 0:00:23]} 25. Qxd3 {[%emt 0:00:06]} Nxd3 {[%emt 0:00:04]} 26. Re3 {[%emt 0:00:07]} Nb4 {[%emt 0:00:47]} 27. Ke2 {[%emt 0:02:49]} f6 {[%emt 0:01:47]} 28. Rd1 {[%emt 0:02:02]} Nc6 {[%emt 0:02:12]} 29. Kf1 {[%emt 0:00:12]} Rd8 {[%emt 0:00:55]} 30. f4 {[%emt 0:01:20]} Kf7 {[%emt 0:02:54]} 31. Rd5 {[%emt 0:01:12]} Rg8 {[%emt 0:01:10]} 32. a3 {[%emt 0:00:14]} Rb8 {[%emt 0:04:29]} 33. Kf2 {[%emt 0:00:47]} a5 {[%emt 0:02:40]} 34. Rd1 {[%emt 0:00:41]} Rgd8 {[%emt 0:02:07]} 35. Rd5 {[%emt 0:00:17]} Rd7 {[%emt 0:02:05]} 36. g4 {[%emt 0:00:43]} Rdb7 {[%emt 0:01:23]} 37. Rdd3 {[%emt 0:00:27]} a4 {[%emt 0:01:18]} 38. bxa4 {[%emt 0:00:06]} Ra7 {[%emt 0:01:49]} 39. Re4 {[%emt 0:00:53]} f5 {[%emt 0:01:33]} 40. gxf5 {[%emt 0:00:11]} Nd4 {[%emt 0:00:24]} 41. Ne3 {[%emt 0:08:38]} Rb2+ {[%emt 0:01:38]} 42. Kf1 {[%emt 0:00:13]} Rxa4 {[%emt 0:05:30]} 43. f6 {[%emt 0:06:58]} e6 {[%emt 0:00:21]} 44. f5 {[%emt 0:00:27]} e5 {[%emt 0:01:00]} 45. Nd5 {[%emt 0:00:10]} Rc4 {[%emt 0:01:17]} 46. Rg4 {[%emt 0:04:31]} Rc1+ {[%emt 0:00:06]} 0-1

[Event "20th Prague Open 2022"]
[Site "Prague"]
[Date "2022.01.12"]
[Round "7.9"]
[White "Plischki, Sebastian"]
[Black "Dev, Shah"]
[Result "1-0"]
[ECO "A33"]
[WhiteElo "2375"]
[BlackElo "2243"]
[Annotator "ChessBase"]
[PlyCount "153"]
[EventDate "2022.01.07"]
[EventType "swiss"]
[EventCountry "CZE"]
[SourceTitle "playchess.com"]
[Source "ChessBase"]
[SourceQuality "1"]
[TimeControl "40/5400+30:1800+30"]

1. c4 {[%emt 0:00:05]} c5 {[%emt 0:01:03]} 2. Nf3 {[%emt 0:00:14]} Nf6 {[%emt 0:00:13]} 3. Nc3 {[%emt 0:00:17]} Nc6 {[%emt 0:00:06]} 4. d4 {[%emt 0:00:16]} cxd4 {[%emt 0:00:10]} 5. Nxd4 {[%emt 0:00:06]} e6 {[%emt 0:00:12]} 6. g3 {[%emt 0:00:18]} Qb6 {[%emt 0:00:09]} 7. Nb3 {[%emt 0:00:22]} Ne5 {[%emt 0:03:35]} 8. e4 {[%emt 0:00:46]} Bb4 {[%emt 0:02:49]} 9. Qe2 {[%emt 0:00:26]} d6 {[%emt 0:27:08]} 10. Bd2 {[%emt 0:01:51]} Bd7 {[%emt 0:04:41]} 11. f4 {[%emt 0:05:32]} Ng6 {[%emt 0:01:40]} 12. e5 {[%emt 0:05:25]} dxe5 {[%emt 0:02:41]} 13. fxe5 {[%emt 0:00:06]} Bc6 {[%emt 0:04:13]} 14. c5 {[%emt 0:08:36]} Qc7 {[%emt 0:07:34]} 15. exf6 {[%emt 0:03:33]} Bxc3 {[%emt 0:00:16]} 16. Bxc3 {[%emt 0:00:12]} Bxh1 {[%emt 0:00:07]} 17. fxg7 {[%emt 0:00:22]} Rg8 {[%emt 0:00:07]} 18. O-O-O {[%emt 0:03:15]} Rd8 {[%emt 0:01:51]} 19. Re1 {[%emt 0:08:29]} Bd5 {[%emt 0:08:41]} 20. Qf2 {[%emt 0:09:18]} Rd7 {[%emt 0:10:05]} 21. Kb1 {[%emt 0:01:21]} Ne7 {[%emt 0:11:54]} 22. Nc1 {[%emt 0:05:11]} f5 {[%emt 0:01:05]} 23. Bb5 {[%emt 0:05:00]} Be4+ {[%emt 0:01:14]} 24. Ka1 {[%emt 0:07:01]} Nc6 {[%emt 0:00:53]} 25. Bc4 {[%emt 0:01:34]} Re7 {[%emt 0:01:29]} 26. Nd3 {[%emt 0:02:32]} Kd7 {[%emt 0:05:51]} 27. Nf4 {[%emt 0:02:31]} Nd8 {[%emt 0:00:01]} 28. Nh5 {[%emt 0:13:34]} Kc8 {[%emt 0:00:19]} 29. Nf6 {[%emt 0:02:06]} Rexg7 {[%emt 0:02:44]} 30. Nxe4 {[%emt 0:00:21]} fxe4 {[%emt 0:00:05]} 31. Bxg7 {[%emt 0:00:11]} Rxg7 {[%emt 0:00:33]} 32. Rxe4 {[%emt 0:00:59]} Rg5 {[%emt 0:01:11]} 33. Bxe6+ {[%emt 0:02:02]} Nxe6 {[%emt 0:00:07]} 34. Rxe6 {[%emt 0:00:05]} Qxc5 {[%emt 0:00:06]} 35. Re8+ {[%emt 0:02:39]} Kc7 {[%emt 0:02:25]} 36. Qf7+ {[%emt 0:00:14]} Kb6 {[%emt 0:00:07]} 37. Re6+ {[%emt 0:06:24]} Ka5 {[%emt 0:00:01]} 38. Re1 {[%emt 0:00:39]} Qb4 {[%emt 0:01:06]} 39. Qc7+ {[%emt 0:02:13]} Ka6 {[%emt 0:00:55]} 40. Re6+ {[%emt 0:00:49]} b6 {[%emt 0:00:00]} 41. a3 {[%emt 0:33:16]} Qb3 {[%emt 0:06:08]} 42. Qc8+ {[%emt 0:00:00]} Ka5 {[%emt 0:00:19]} 43. Qd7 {[%emt 0:00:00]} Ka6 {[%emt 0:02:03]} 44. Re4 {[%emt 0:00:00]} Rb5 {[%emt 0:01:41]} 45. Qd4 {[%emt 0:00:00]} Rd5 {[%emt 0:01:11]} 46. Qc4+ {[%emt 0:00:00]} Qxc4 {[%emt 0:00:21]} 47. Rxc4 {[%emt 0:00:00]} Rd7 {[%emt 0:06:12]} 48. Kb1 {[%emt 0:00:00]} Kb5 {[%emt 0:00:18]} 49. b3 {[%emt 0:00:00]} Rf7 {[%emt 0:04:51]} 50. a4+ {[%emt 0:00:00]} Ka5 {[%emt 0:00:03]} 51. Rh4 {[%emt 0:00:00]} b5 {[%emt 0:05:47]} 52. Kc2 {[%emt 0:00:00]} Rd7 {[%emt 0:01:40]} 53. axb5 {[%emt 0:00:00]} Kxb5 {[%emt 0:00:05]} 54. Kc3 {[%emt 0:00:00]} a5 {[%emt 0:01:12]} 55. Rh5+ {[%emt 0:00:00]} Kb6 {[%emt 0:00:05]} 56. g4 {[%emt 0:00:00]} Rf7 {[%emt 0:03:17]} 57. h3 {[%emt 0:00:00]} Rd7 {[%emt 0:00:05]} 58. Kc4 {[%emt 0:00:00]} Rc7+ {[%emt 0:00:45]} 59. Kd4 {[%emt 0:00:00]} Ra7 {[%emt 0:00:26]} 60. Ke4 {[%emt 0:00:00]} Rb7 {[%emt 0:01:32]} 61. Rd5 {[%emt 0:00:00]} Ka6 {[%emt 0:00:31]} 62. Rd3 {[%emt 0:00:00]} Kb5 {[%emt 0:02:18]} 63. h4 {[%emt 0:00:14]} Kb4 {[%emt 0:00:20]} 64. g5 {[%emt 0:01:37]} Rf7 {[%emt 0:01:07]} 65. h5 {[%emt 0:00:46]} Rf1 {[%emt 0:00:32]} 66. Rg3 {[%emt 0:00:23]} Rh1 {[%emt 0:00:40]} 67. g6 {[%emt 0:02:34]} Rh4+ {[%emt 0:00:07]} 68. Kf3 {[%emt 0:00:04]} hxg6 {[%emt 0:00:11]} 69. hxg6 {[%emt 0:00:05]} Rh8 {[%emt 0:00:50]} 70. Kg4 {[%emt 0:00:10]} Rg8 {[%emt 0:00:34]} 71. Kg5 {[%emt 0:00:07]} Ka3 {[%emt 0:00:21]} 72. Kf6 {[%emt 0:00:22]} Rb8 {[%emt 0:00:12]} 73. g7 {[%emt 0:00:16]} Rb6+ {[%emt 0:00:09]} 74. Kf7 {[%emt 0:01:02]} Rb7+ {[%emt 0:00:04]} 75. Kg6 {[%emt 0:00:08]} Rb8 {[%emt 0:00:06]} 76. Kh7 {[%emt 0:00:44]} Rb7 {[%emt 0:00:05]} 77. Kh8 {[%emt 0:00:05]} 1-0

[Event "20th Prague Open 2022"]
[Site "Prague"]
[Date "2022.01.12"]
[Round "7.10"]
[White "Hrabusa, Matej"]
[Black "Grutter, Tim"]
[Result "1-0"]
[ECO "E92"]
[WhiteElo "2369"]
[BlackElo "2194"]
[Annotator "ChessBase"]
[PlyCount "155"]
[EventDate "2022.01.07"]
[EventType "swiss"]
[EventCountry "CZE"]
[SourceTitle "playchess.com"]
[Source "ChessBase"]
[SourceQuality "1"]
[TimeControl "40/5400+30:1800+30"]

1. d4 {[%emt 0:00:04]} Nf6 {[%emt 0:00:04]} 2. Nf3 {[%emt 0:00:06]} g6 {[%emt 0:00:05]} 3. c4 {[%emt 0:00:09]} Bg7 {[%emt 0:00:06]} 4. Nc3 {[%emt 0:00:06]} d6 {[%emt 0:00:09]} 5. e4 {[%emt 0:00:11]} O-O {[%emt 0:00:07]} 6. Be2 {[%emt 0:00:16]} e5 {[%emt 0:00:09]} 7. Be3 {[%emt 0:00:11]} exd4 {[%emt 0:01:40]} 8. Nxd4 {[%emt 0:00:07]} Re8 {[%emt 0:00:12]} 9. f3 {[%emt 0:00:08]} c6 {[%emt 0:00:22]} 10. Bf2 {[%emt 0:00:22]} d5 {[%emt 0:00:40]} 11. exd5 {[%emt 0:00:13]} cxd5 {[%emt 0:00:16]} 12. O-O {[%emt 0:00:14]} Nc6 {[%emt 0:01:20]} 13. c5 {[%emt 0:00:21]} Nxd4 {[%emt 0:17:13]} 14. Bxd4 {[%emt 0:01:03]} Bd7 {[%emt 0:08:38]} 15. Qd2 {[%emt 0:03:07]} Qa5 {[%emt 0:17:55]} 16. Rad1 {[%emt 0:07:05]} Rad8 {[%emt 0:04:42]} 17. Kh1 {[%emt 0:03:45]} Kh8 {[%emt 0:13:07]} 18. Rfe1 {[%emt 0:09:49]} Be6 {[%emt 0:03:34]} 19. Qf4 {[%emt 0:07:00]} Nh5 {[%emt 0:04:37]} 20. Bxg7+ {[%emt 0:00:53]} Kg8 {[%emt 0:04:18]} 21. Qd4 {[%emt 0:13:58]} Nxg7 {[%emt 0:00:05]} 22. Bb5 {[%emt 0:01:32]} Rf8 {[%emt 0:02:22]} 23. b4 {[%emt 0:01:40]} Qc7 {[%emt 0:00:17]} 24. Bd3 {[%emt 0:01:31]} a6 {[%emt 0:01:13]} 25. a4 {[%emt 0:10:24]} Qd7 {[%emt 0:08:00]} 26. b5 {[%emt 0:04:20]} axb5 {[%emt 0:00:52]} 27. axb5 {[%emt 0:00:12]} Bf5 {[%emt 0:01:37]} 28. Bxf5 {[%emt 0:07:24]} Nxf5 {[%emt 0:00:01]} 29. Qxd5 {[%emt 0:00:23]} Qc7 {[%emt 0:01:30]} 30. Qc4 {[%emt 0:01:13]} Rxd1 {[%emt 0:00:56]} 31. Rxd1 {[%emt 0:02:53]} Rc8 {[%emt 0:01:41]} 32. Ne4 {[%emt 0:06:35]} Ne3 {[%emt 0:02:27]} 33. Nf6+ {[%emt 0:00:48]} Kf8 {[%emt 0:00:48]} 34. Qh4 {[%emt 0:01:56]} Kg7 {[%emt 0:01:25]} 35. Rc1 {[%emt 0:05:23]} Qe5 {[%emt 0:02:27]} 36. Ne4 {[%emt 0:01:31]} Nxg2 {[%emt 0:00:33]} 37. Qh3 {[%emt 0:03:34]} f5 {[%emt 0:00:34]} 38. Ng5 {[%emt 0:00:48]} h6 {[%emt 0:01:34]} 39. Qxh6+ {[%emt 0:00:35]} Kxh6 {[%emt 0:00:27]} 40. Nf7+ {[%emt 0:00:06]} Kg7 {[%emt 0:00:15]} 41. Nxe5 {[%emt 0:30:05]} Nf4 {[%emt 0:31:30]} 42. c6 {[%emt 0:07:37]} bxc6 {[%emt 0:00:00]} 43. Nxc6 {[%emt 0:00:00]} Rc7 {[%emt 0:00:00]} 44. Ra1 {[%emt 0:00:00]} Kf7 {[%emt 0:00:00]} 45. Rb1 {[%emt 0:00:00]} Ne6 {[%emt 0:00:00]} 46. b6 {[%emt 0:00:00]} Rb7 {[%emt 0:00:00]} 47. Na5 {[%emt 0:00:00]} Rb8 {[%emt 0:00:00]} 48. b7 {[%emt 0:00:00]} Nd8 {[%emt 0:00:00]} 49. Rc1 {[%emt 0:00:00]} Ke6 {[%emt 0:00:00]} 50. Rc8 {[%emt 0:00:00]} Nxb7 {[%emt 0:00:51]} 51. Rxb8 {[%emt 0:00:00]} Nxa5 {[%emt 0:00:03]} 52. Rb6+ {[%emt 0:00:00]} Kf7 {[%emt 0:00:10]} 53. Kg2 {[%emt 0:00:00]} Nc4 {[%emt 0:00:07]} 54. Ra6 {[%emt 0:00:00]} Ne3+ {[%emt 0:03:06]} 55. Kf2 {[%emt 0:00:00]} f4 {[%emt 0:01:53]} 56. Ke2 {[%emt 0:00:00]} g5 {[%emt 0:01:38]} 57. Kd3 {[%emt 0:01:00]} Nf1 {[%emt 0:00:49]} 58. Ra2 {[%emt 0:02:20]} Ne3 {[%emt 0:00:21]} 59. Ke4 {[%emt 0:00:49]} Kg6 {[%emt 0:00:20]} 60. h4 {[%emt 0:00:24]} Nc4 {[%emt 0:00:42]} 61. hxg5 {[%emt 0:00:28]} Kxg5 {[%emt 0:00:06]} 62. Rg2+ {[%emt 0:00:08]} Kf6 {[%emt 0:00:08]} 63. Kxf4 {[%emt 0:00:09]} Ne5 {[%emt 0:00:04]} 64. Ra2 {[%emt 0:00:23]} Nd3+ {[%emt 0:00:17]} 65. Ke3 {[%emt 0:00:24]} Ne5 {[%emt 0:02:04]} 66. Ke4 {[%emt 0:00:29]} Nc4 {[%emt 0:00:29]} 67. Ra6+ {[%emt 0:00:55]} Ke7 {[%emt 0:00:25]} 68. Kf5 {[%emt 0:00:56]} Ne3+ {[%emt 0:00:12]} 69. Kg5 {[%emt 0:00:18]} Kf7 {[%emt 0:00:15]} 70. f4 {[%emt 0:00:17]} Nc4 {[%emt 0:00:35]} 71. f5 {[%emt 0:00:34]} Ne5 {[%emt 0:00:25]} 72. Ra7+ {[%emt 0:00:24]} Ke8 {[%emt 0:01:02]} 73. Kf6 {[%emt 0:00:29]} Nc6 {[%emt 0:00:14]} 74. Ra8+ {[%emt 0:00:14]} Kd7 {[%emt 0:00:21]} 75. Kg7 {[%emt 0:00:11]} Nd4 {[%emt 0:00:12]} 76. f6 {[%emt 0:00:13]} Nf5+ {[%emt 0:00:17]} 77. Kg6 {[%emt 0:00:31]} Ke6 {[%emt 0:00:48]} 78. Ra6+ {[%emt 0:00:13]} 1-0

[Event "20th Prague Open 2022"]
[Site "Prague"]
[Date "2022.01.12"]
[Round "7.13"]
[White "Acor, Corey"]
[Black "Cornelisse, John"]
[Result "1/2-1/2"]
[ECO "B10"]
[WhiteElo "2303"]
[BlackElo "2173"]
[Annotator "ChessBase"]
[PlyCount "162"]
[EventDate "2022.01.07"]
[EventType "swiss"]
[EventCountry "CZE"]
[SourceTitle "playchess.com"]
[Source "ChessBase"]
[SourceQuality "1"]
[TimeControl "40/5400+30:1800+30"]

1. e4 {[%emt 0:08:53]} c6 {[%emt 0:00:10]} 2. Nc3 {[%emt 0:00:09]} d5 {[%emt 0:00:13]} 3. Nf3 {[%emt 0:00:37]} dxe4 {[%emt 0:00:18]} 4. Nxe4 {[%emt 0:00:08]} Nf6 {[%emt 0:00:11]} 5. Qe2 {[%emt 0:00:10]} Nxe4 {[%emt 0:00:20]} 6. Qxe4 {[%emt 0:00:06]} Nd7 {[%emt 0:00:15]} 7. d4 {[%emt 0:00:07]} Nf6 {[%emt 0:00:37]} 8. Qf4 {[%emt 0:01:19]} Bg4 {[%emt 0:04:12]} 9. Ne5 {[%emt 0:00:41]} Bh5 {[%emt 0:00:13]} 10. g4 {[%emt 0:01:15]} Bg6 {[%emt 0:00:13]} 11. Bg2 {[%emt 0:02:00]} e6 {[%emt 0:04:15]} 12. O-O {[%emt 0:05:23]} Nd7 {[%emt 0:06:28]} 13. Nxg6 {[%emt 0:01:13]} hxg6 {[%emt 0:00:09]} 14. Re1 {[%emt 0:03:07]} Nf6 {[%emt 0:02:50]} 15. h3 {[%emt 0:00:50]} Bd6 {[%emt 0:02:39]} 16. Qf3 {[%emt 0:01:06]} Qc7 {[%emt 0:03:49]} 17. Bg5 {[%emt 0:00:44]} Nh7 {[%emt 0:04:03]} 18. Be3 {[%emt 0:00:40]} O-O {[%emt 0:01:02]} 19. c4 {[%emt 0:00:48]} Rad8 {[%emt 0:07:53]} 20. Rad1 {[%emt 0:05:55]} Rfe8 {[%emt 0:04:14]} 21. c5 {[%emt 0:03:06]} Be7 {[%emt 0:00:35]} 22. Bf4 {[%emt 0:00:32]} Qc8 {[%emt 0:03:50]} 23. Qg3 {[%emt 0:01:21]} Nf6 {[%emt 0:01:07]} 24. Be5 {[%emt 0:00:38]} Nd5 {[%emt 0:01:01]} 25. g5 {[%emt 0:01:04]} b6 {[%emt 0:06:20]} 26. cxb6 {[%emt 0:06:08]} axb6 {[%emt 0:00:07]} 27. Rc1 {[%emt 0:00:18]} Qa6 {[%emt 0:07:17]} 28. a3 {[%emt 0:03:37]} b5 {[%emt 0:01:48]} 29. Bf1 {[%emt 0:01:49]} Qb6 {[%emt 0:03:15]} 30. b4 {[%emt 0:02:08]} Ra8 {[%emt 0:00:29]} 31. Rb1 {[%emt 0:00:33]} Qa7 {[%emt 0:01:41]} 32. Rb3 {[%emt 0:00:20]} Bd8 {[%emt 0:00:47]} 33. h4 {[%emt 0:00:18]} Bb6 {[%emt 0:00:17]} 34. Re4 {[%emt 0:03:33]} Ne7 {[%emt 0:00:58]} 35. Qg4 {[%emt 0:00:36]} Nf5 {[%emt 0:01:02]} 36. h5 {[%emt 0:07:07]} Bc7 {[%emt 0:03:41]} 37. Rc3 {[%emt 0:02:24]} Rac8 {[%emt 0:02:48]} 38. Qf3 {[%emt 0:14:08]} Bxe5 {[%emt 0:15:54]} 39. dxe5 {[%emt 0:00:53]} Red8 {[%emt 0:01:20]} 40. hxg6 {[%emt 0:08:56]} fxg6 {[%emt 0:00:06]} 41. Re1 {[%emt 0:37:13]} Qe7 {[%emt 0:33:38]} 42. Rec1 {[%emt 0:00:00]} Qxg5+ {[%emt 0:00:00]} 43. Qg2 {[%emt 0:00:00]} Qh5 {[%emt 0:00:00]} 44. Rh3 {[%emt 0:00:00]} Nh4 {[%emt 0:00:00]} 45. Qg3 {[%emt 0:00:00]} Rd4 {[%emt 0:00:00]} 46. Qe3 {[%emt 0:01:36]} Rg4+ {[%emt 0:00:00]} 47. Kh1 {[%emt 0:00:24]} Nf5 {[%emt 0:01:44]} 48. Qd2 {[%emt 0:02:08]} Rh4 {[%emt 0:00:44]} 49. Rcc3 {[%emt 0:00:01]} g5 {[%emt 0:01:33]} 50. Qd7 {[%emt 0:01:31]} Re8 {[%emt 0:01:18]} 51. Rxh4 {[%emt 0:01:20]} gxh4 {[%emt 0:00:29]} 52. Be2 {[%emt 0:02:07]} Qxe2 {[%emt 0:04:09]} 53. Qxe8+ {[%emt 0:00:06]} Kh7 {[%emt 0:00:02]} 54. Qxe6 {[%emt 0:03:17]} Qxf2 {[%emt 0:01:33]} 55. Qxc6 {[%emt 0:01:19]} Ng3+ {[%emt 0:01:22]} 56. Rxg3 {[%emt 0:00:02]} hxg3 {[%emt 0:00:05]} 57. Qe4+ {[%emt 0:00:35]} g6 {[%emt 0:01:41]} 58. Qb7+ {[%emt 0:02:24]} Kh6 {[%emt 0:00:19]} 59. Qg2 {[%emt 0:00:25]} Qe1+ {[%emt 0:00:16]} 60. Qg1 {[%emt 0:00:02]} Qxe5 {[%emt 0:00:11]} 61. Kg2 {[%emt 0:01:16]} Kg5 {[%emt 0:02:04]} 62. Qc5 {[%emt 0:00:28]} Kf5 {[%emt 0:00:36]} 63. Qc8+ {[%emt 0:00:08]} Ke4 {[%emt 0:00:39]} 64. Qc2+ {[%emt 0:00:42]} Kf4 {[%emt 0:00:26]} 65. Qd2+ {[%emt 0:00:30]} Kf5 {[%emt 0:00:39]} 66. Qd7+ {[%emt 0:00:18]} Ke4 {[%emt 0:00:40]} 67. Qg4+ {[%emt 0:00:51]} Kd3 {[%emt 0:00:40]} 68. Qd1+ {[%emt 0:00:31]} Kc4 {[%emt 0:00:29]} 69. Qc2+ {[%emt 0:00:02]} Qc3 {[%emt 0:00:23]} 70. Qe2+ {[%emt 0:00:36]} Qd3 {[%emt 0:00:33]} 71. Qa2+ {[%emt 0:00:44]} Kd4 {[%emt 0:00:13]} 72. Qa1+ {[%emt 0:00:14]} Kd5 {[%emt 0:00:28]} 73. Qa2+ {[%emt 0:00:24]} Ke5 {[%emt 0:00:21]} 74. a4 {[%emt 0:00:55]} bxa4 {[%emt 0:00:58]} 75. Qxa4 {[%emt 0:00:35]} Qe4+ {[%emt 0:00:19]} 76. Kxg3 {[%emt 0:00:04]} Qf4+ {[%emt 0:00:05]} 77. Kg2 {[%emt 0:00:13]} Qd2+ {[%emt 0:00:10]} 78. Kf1 {[%emt 0:00:52]} Qd3+ {[%emt 0:00:39]} 79. Ke1 {[%emt 0:00:21]} Qe3+ {[%emt 0:00:16]} 80. Kd1 {[%emt 0:00:28]} Qd3+ {[%emt 0:00:09]} 81. Ke1 {[%emt 0:00:34]} Kd5 1/2-1/2